bitfinex/quotes_SOLUSD_20240902
["timestamp","ask_amount","ask_price","bid_price","bid_amount"]
[1725257809919,7.7249,129.46,129.44,15.9145]
[1725257812342,25.01811156,129.49,129.44,15.9145]
[1725257812523,20.0,129.48,129.44,23.6395]
[1725257813038,20.0,129.48,129.45,0.79642752]
[1725257813974,20.0,129.48,129.45,7.7248]
[1725257814120,20.0,129.49,129.45,7.7248]
[1725257814722,20.0,129.49,129.44,23.64]
[1725257814940,20.0,129.49,129.45,45.0]
[1725257816047,27.7226,129.49,129.45,45.0]
[1725257816931,20.0,129.49,129.45,52.7248]
[1725257817223,20.0,129.52,129.45,52.7248]
[1725257817424,20.0,129.54,129.45,52.7248]
[1725257817643,7.7219,129.51,129.45,52.7248]
[1725257817857,20.0,129.5,129.45,52.7248]
[1725257819957,20.0,129.5,129.46,7.7243]
[1725257821368,27.722,129.5,129.45,52.7248]
[1725257824252,24.76713156,129.53,129.48,7.7228]
[1725257824253,7.7207,129.53,129.48,7.7228]
[1725257824448,24.76713156,129.57,129.49,19.3052]
[1725257825252,7.7196,129.54,129.49,27.0277]
[1725257825674,7.7202,129.53,129.49,27.0277]
[1725257825980,7.84639,129.52,129.47,29.7485]
[1725257826876,27.7214,129.51,129.47,22.0253]
[1725257829246,20.0,129.51,129.47,29.7489]
[1725257829448,20.0,129.51,129.48,52.7231]
[1725257829844,20.0,129.52,129.48,52.7231]
[1725257831379,20.0,129.52,129.49,7.7225]
[1725257831569,20.0,129.54,129.49,7.7225]
[1725257832378,27.7198,129.54,129.49,7.7225]
[1725257833170,7.7207,129.53,129.48,19.307]
[1725257833363,20.0,129.52,129.48,19.307]
[1725257834887,20.0,129.52,129.48,27.0299]
[1725257835062,20.0,129.52,129.49,45.0]
[1725257839662,27.7209,129.52,129.48,27.0299]
[1725257840686,27.7209,129.52,129.48,19.307]
[1725257843686,7.7232,129.48,129.47,15.9956]
[1725257843892,7.7226,129.49,129.47,15.9956]
[1725257845591,7.84759,129.5,129.47,15.9956]
[1725257845799,20.0,129.49,129.47,15.9956]
[1725257846512,7.7203,129.53,129.48,45.0]
[1725257846792,20.0,129.52,129.48,54.26740111]
[1725257848595,20.0,129.52,129.48,52.723]
[1725257849102,20.0,129.52,129.49,7.7225]
[1725257849272,20.0,129.52,129.5,7.7219]
[1725257849468,20.0,129.54,129.5,9.26606696]
[1725257849888,20.0,129.54,129.51,15.1009]
[1725257851581,3.86169729,129.58,129.51,15.1009]
[1725257851794,2.24461206,129.62,129.53,6.4551]
[1725257851998,282.89822473,129.63,129.54,1.54359233]
[1725257852186,7.7165,129.6,129.55,7.7188]
[1725257852386,282.89822473,129.63,129.54,46.54359233]
[1725257853289,7.7166,129.59,129.54,54.26269233]
[1725257853600,20.0,129.58,129.54,54.26269233]
[1725257854019,20.0,129.58,129.54,52.7191]
[1725257854998,20.0,129.58,129.55,7.7189]
[1725257855199,20.0,129.58,129.56,7.7182]
[1725257855410,20.0,129.59,129.56,7.7182]
[1725257855916,20.0,129.59,129.55,27.0161]
[1725257856510,20.0,129.59,129.56,16.5911]
[1725257857924,20.0,129.59,129.56,24.3094]
[1725257858212,20.0,129.6,129.56,24.3094]
[1725257858713,27.7161,129.6,129.56,24.3094]
[1725257859721,20.0,129.6,129.57,19.2936]
[1725257860013,20.0,129.64,129.57,19.2936]
[1725257860788,20.0,129.64,129.58,7.7167]
[1725257861818,0.12549,129.63,129.58,7.7167]
[1725257863421,0.12549,129.63,129.58,14.2918]
[1725257864333,7.83979,129.63,129.58,14.2918]
[1725257864499,20.0,129.62,129.58,14.2918]
[1725257864821,7.7159,129.61,129.57,19.2936]
[1725257864996,27.84159,129.6,129.57,19.2936]
[1725257865202,7.7161,129.6,129.56,24.3093]
[1725257865402,0.12549,129.61,129.56,24.3093]
[1725257865403,27.7166,129.59,129.56,16.5911]
[1725257865599,7.7166,129.59,129.56,16.5911]
[1725257867006,7.716,129.6,129.56,16.5911]
[1725257867213,20.0,129.59,129.56,16.5911]
[1725257867823,0.25098,129.61,129.56,16.5911]
[1725257869931,9.88764624,129.6,129.56,16.5911]
[1725257870228,20.0,129.59,129.56,16.5911]
[1725257872307,7.7186,129.56,129.53,16.1277]
[1725257872804,7.84279,129.58,129.53,43.1477]
[1725257873001,20.0,129.57,129.53,43.1477]
[1725257873431,20.0,129.57,129.54,7.7194]
[1725257873821,27.84269,129.58,129.54,7.7194]
[1725257874005,27.84269,129.58,129.53,43.1477]
[1725257874627,7.718,129.57,129.53,35.4276]
[1725257874930,20.0,129.56,129.53,35.4276]
[1725257875133,7.718,129.57,129.53,35.4276]
[1725257875516,20.0,129.56,129.53,35.4276]
[1725257877429,7.7196,129.54,129.53,16.1277]
[1725257877632,27.7196,129.54,129.53,16.1277]
[1725257877932,27.7196,129.54,129.5,34.5223]
[1725257878142,27.7203,129.53,129.5,15.2174]
[1725257879222,7.7208,129.52,129.5,15.2174]
[1725257880427,27.7204,129.53,129.5,15.2174]
[1725257882810,20.0,129.53,129.5,15.2174]
[1725257883018,7.7214,129.51,129.46,29.8837]
[1725257883435,27.722,129.5,129.46,29.8837]
[1725257883634,27.722,129.5,129.41,9.88764624]
[1725257883635,7.7237,129.47,129.43,21.9649]
[1725257883843,20.0,129.46,129.43,21.9649]
[1725257885326,9.88764624,129.51,129.43,21.9649]
[1725257885520,0.25098,129.5,129.43,21.9649]
[1725257885706,7.7227,129.49,129.44,7.7255]
[1725257885910,20.0,129.48,129.44,7.7255]
[1725257886113,20.0,129.48,129.45,7.7249]
[1725257886552,20.0,129.49,129.46,7.7238]
[1725257886830,27.84749,129.5,129.46,7.7238]
[1725257887229,27.84749,129.5,129.45,27.036]
[1725257888118,20.0,129.5,129.46,7.7243]
[1725257890648,27.722,129.5,129.45,27.0359]
[1725257890845,44.75684725,129.5,129.43,21.9649]
[1725257891054,0.25098,129.49,129.43,21.9649]
[1725257891639,7.7237,129.47,129.43,21.9649]
[1725257891824,0.25098,129.46,129.43,15.9408]
[1725257892028,20.25098,129.46,129.43,15.9408]
[1725257892621,0.25098,129.46,129.43,15.9408]
[1725257893031,7.97578,129.46,129.43,15.9408]
[1725257893228,20.0,129.45,129.43,15.9408]
[1725257893440,0.12549,129.44,129.4,22.9207]
[1725257893638,7.7262,129.43,129.4,22.9207]
[1725257893848,27.725,129.45,129.4,30.6485]
[1725257896049,7.7256,129.44,129.4,30.6485]
[1725257896350,20.0,129.43,129.4,30.6485]
[1725257897650,20.0,129.44,129.4,30.6485]
[1725257898528,20.0,129.44,129.41,7.7273]
[1725257899334,20.0,129.44,129.4,22.9207]
[1725257902537,27.7256,129.44,129.4,22.9207]
[1725257906756,27.7256,129.44,129.41,0.40433193]
[1725257906757,20.0,129.44,129.41,0.40433193]
[1725257907343,20.0,129.44,129.4,30.6485]
[1725257910357,7.723,129.49,129.43,7.7257]
[1725257910536,7.723,129.49,129.44,17.66975529]
[1725257911733,7.7232,129.48,129.44,16.1249]
[1725257912338,24.76319031,129.5,129.44,16.1249]
[1725257912339,20.0,129.47,129.44,16.1249]
[1725257912534,7.7245,129.46,129.44,16.1249]
[1725257912760,20.0,129.45,129.44,16.1249]
[1725257912959,27.7249,129.45,129.44,16.1249]
[1725257913255,20.0,129.45,129.44,16.1249]
[1725257916467,20.0,129.45,129.41,42.3241]
[1725257918061,20.0,129.45,129.41,34.5969]
[1725257918267,7.725,129.45,129.41,15.2792]
[1725257918464,20.0,129.44,129.41,15.2792]
[1725257919767,20.0,129.44,129.42,7.7266]
[1725257919938,27.7238,129.47,129.42,7.7266]
[1725257920143,27.7238,129.47,129.41,23.0064]
[1725257921553,27.7238,129.47,129.42,45.0]
[1725257926056,7.7244,129.46,129.42,45.0]
[1725257926362,20.0,129.45,129.42,45.0]
[1725257927275,20.0,129.45,129.41,15.2792]
[1725257927467,7.7263,129.43,129.41,15.2792]
[1725257927676,20.0,129.42,129.41,15.2792]
[1725257928673,20.0,129.42,129.38,15.5541]
[1725257928973,7.7275,129.41,129.38,15.5541]
[1725257929153,20.0,129.4,129.38,15.5541]
[1725257930168,20.0,129.4,129.15,52.7672559]
[1725257930169,44.76319031,129.4,129.32,3.58961227]
[1725257930383,20.25098,129.39,129.31,6.4722]
[1725257930674,7.7305,129.36,129.31,6.4722]
[1725257931449,27.731,129.35,129.31,6.4722]
[1725257932370,20.0,129.35,129.31,6.4722]
[1725257932866,20.0,129.35,129.31,14.2053]
[1725257933780,20.0,129.35,129.31,6.4722]
[1725257933954,27.7312,129.35,129.3,15.6566]
[1725257934855,7.7321,129.34,129.3,15.6566]
[1725257935162,20.12549,129.33,129.3,15.6566]
[1725257935373,7.7321,129.33,129.3,15.6566]
[1725257936364,7.7321,129.33,129.27,22.9417]
[1725257936564,7.7329,129.32,129.27,22.9417]
[1725257936759,7.7344,129.3,129.24,22.775]
[1725257937370,7.7352,129.28,129.24,15.0376]
[1725257937570,0.12549,129.31,129.24,15.0376]
[1725257937571,24.76319031,129.3,129.24,15.0376]
[1725257937760,7.7352,129.28,129.24,15.0376]
[1725257937968,7.7352,129.28,129.22,7.7387]
[1725257937969,0.12549,129.27,129.22,7.7387]
[1725257938297,7.7352,129.28,129.23,7.7379]
[1725257938580,20.0,129.35,129.24,7.7374]
[1725257938581,24.76319031,129.32,129.24,7.7374]
[1725257938784,7.734,129.3,129.24,7.7374]
[1725257938983,20.0,129.29,129.26,7.7363]
[1725257939697,7.734,129.3,129.25,14.0741]
[1725257939988,20.0,129.29,129.25,14.0741]
[1725257940182,20.0,129.29,129.26,7.7363]
[1725257940391,20.0,129.3,129.26,7.7363]
[1725257940790,20.0,129.3,129.25,14.0742]
[1725257941607,27.7342,129.3,129.24,7.7375]
[1725257944169,7.7345,129.29,129.24,7.7375]
[1725257944366,20.0,129.28,129.24,7.7375]
[1725257945094,19.3318,129.33,129.23,19.3453]
[1725257945095,20.0,129.29,129.25,45.0]
[1725257945273,31.20909031,129.34,129.24,45.0]
[1725257945484,20.0,129.33,129.24,45.0]
[1725257946300,7.7336,129.31,129.26,7.7362]
[1725257946677,20.0,129.3,129.26,7.7362]
[1725257948402,7.7325,129.33,129.27,80.3848]
[1725257948704,20.0,129.32,129.27,35.3848]
[1725257949405,20.0,129.32,129.28,1.54675921]
[1725257949595,20.0,129.35,129.29,7.7344]
[1725257949904,7.7321,129.33,129.28,52.7351]
[1725257950207,20.0,129.32,129.28,52.7351]
[1725257951979,27.7328,129.32,129.27,43.1205]
[1725257952186,7.7334,129.31,129.27,43.1205]
[1725257952887,20.0,129.3,129.27,43.1205]
[1725257953088,27.7329,129.32,129.27,43.1205]
[1725257960205,7.7343,129.3,129.27,16.0466]
[1725257960413,7.7335,129.31,129.27,16.0466]
[1725257960606,20.0,129.3,129.27,16.0466]
[1725257960909,27.7342,129.3,129.27,16.0466]
[1725257964302,20.0,129.3,129.27,16.0466]
[1725257965031,20.0,129.3,129.27,30.0313]
[1725257965319,20.0,129.31,129.27,30.0313]
[1725257966808,20.0,129.31,129.27,41.6345]
[1725257967120,20.0,129.33,129.29,7.7344]
[1725257967594,24.76319031,129.36,129.31,19.3321]
[1725257967793,7.731,129.35,129.31,27.0653]
[1725257968018,7.731,129.35,129.31,19.3321]
[1725257968392,3.86169729,129.38,129.31,19.3321]
[1725257968393,7.7303,129.37,129.31,19.3321]
[1725257968595,7.7303,129.37,129.32,15.4183]
[1725257969224,7.7303,129.37,129.32,23.1509]
[1725257969712,27.7303,129.36,129.32,23.1509]
[1725257970301,7.7312,129.35,129.32,15.4183]
[1725257970496,7.7328,129.32,129.29,15.8273]
[1725257971529,7.7322,129.33,129.29,15.8273]
[1725257971702,20.0,129.32,129.29,15.8273]
[1725257972713,20.0,129.32,129.29,25.10841408]
[1725257972915,20.0,129.33,129.29,23.5617]
[1725257974818,27.7321,129.33,129.29,23.5617]
[1725257975420,20.0,129.33,129.29,23.5617]
[1725257976724,20.0,129.33,129.3,7.7339]
[1725257976912,20.0,129.34,129.29,15.8273]
[1725257977114,7.7304,129.36,129.31,19.332]
[1725257977511,20.0,129.35,129.31,19.332]
[1725257977911,7.7304,129.36,129.31,19.332]
[1725257978113,7.7314,129.35,129.31,19.332]
[1725257978903,7.7316,129.34,129.29,23.5618]
[1725257979134,7.7321,129.33,129.29,23.5618]
[1725257979604,24.76319031,129.35,129.29,15.8273]
[1725257979805,20.25098,129.34,129.29,15.8273]
[1725257980523,7.7333,129.32,129.29,15.8273]
[1725257983429,27.7334,129.31,129.29,15.8273]
[1725257986027,7.7339,129.3,129.29,15.8273]
[1725257986335,27.7339,129.3,129.29,15.8273]
[1725257986647,20.0,129.3,129.29,15.8273]
[1725257987020,20.0,129.3,129.27,6.2492]
[1725257987823,27.734,129.3,129.27,6.2492]
[1725257990206,19.3221,129.39,129.27,25.5877]
[1725257990535,9.9315881,129.35,129.28,46.54541015]
[1725257990707,27.7317,129.34,129.29,7.734]
[1725257992003,7.7327,129.32,129.28,7.7349]
[1725257992223,7.7327,129.32,129.27,33.3233]
[1725257992417,20.0,129.31,129.27,33.3233]
[1725257992619,20.0,129.31,129.28,7.735]
[1725257992936,20.0,129.32,129.28,7.735]
[1725257993232,27.7329,129.32,129.28,7.735]
[1725257993614,0.12549,129.31,129.27,33.3233]
[1725257995210,7.85889,129.31,129.27,25.5877]
[1725257995415,7.85889,129.31,129.27,6.2492]
[1725257995416,20.0,129.3,129.27,6.2492]
[1725257995615,20.0,129.3,129.26,16.1585]
[1725257996442,27.7341,129.3,129.26,16.1585]
[1725257997434,9.9315881,129.27,129.23,22.72]
[1725257997736,20.0,129.26,129.23,22.72]
[1725257998948,27.7364,129.26,129.23,22.72]
[1725257999125,27.7364,129.26,129.23,16.3901]
[1725257999310,20.0,129.26,129.23,16.3901]
[1725258000433,20.0,129.26,129.23,35.7347]
[1725258000615,254.3,129.35,129.3,7.7339]
[1725258000815,254.3,129.35,129.3,27.0687]
[1725258000816,30.0,129.31,129.3,27.0687]
[1725258001010,9.9315881,129.35,129.3,27.0687]
[1725258002543,17.6624881,129.35,129.3,27.0687]
[1725258003047,20.0,129.34,129.3,27.0687]
[1725258005431,20.0,129.34,129.3,19.3348]
[1725258005743,24.81284397,129.39,129.32,41.1456]
[1725258005944,7.7291,129.38,129.32,41.1456]
[1725258006321,7.7345,129.29,129.28,21.8148]
[1725258006520,7.7333,129.31,129.28,21.8148]
[1725258006841,7.7325,129.33,129.28,21.8148]
[1725258007347,20.0,129.32,129.28,21.8148]
[1725258008236,20.0,129.32,129.28,29.5499]
[1725258009048,27.7329,129.32,129.28,21.8148]
[1725258009553,20.0,129.32,129.28,29.5498]
[1725258009736,20.12549,129.33,129.28,29.5498]
[1725258012424,20.0,129.33,129.29,7.7343]
[1725258012728,20.0,129.33,129.28,48.8874]
[1725258012729,27.7322,129.33,129.28,48.8874]
[1725258013033,7.7329,129.32,129.28,41.1524]
[1725258013240,20.0,129.31,129.28,41.1524]
[1725258013553,0.12549,129.3,129.25,22.0563]
[1725258014136,7.734,129.3,129.25,22.0563]
[1725258014349,20.0,129.29,129.25,29.7931]
[1725258016027,20.0,129.29,129.27,7.7355]
[1725258016326,20.0,129.3,129.27,7.7355]
[1725258016538,20.0,129.31,129.28,7.7351]
[1725258017251,24.81284397,129.35,129.29,7.7345]
[1725258017438,7.7317,129.34,129.3,16.1184]
[1725258018752,20.0,129.33,129.3,16.1184]
[1725258019246,7.7329,129.32,129.3,16.1184]
[1725258020028,20.12549,129.33,129.3,16.1184]
[1725258020229,20.0,129.33,129.3,23.8523]
[1725258020424,27.7315,129.34,129.3,23.8523]
[1725258020861,27.7315,129.34,129.3,16.1184]
[1725258022846,20.0,129.34,129.3,35.4522]
[1725258023543,27.7317,129.34,129.3,35.4522]
[1725258023950,37.6590793,129.34,129.3,35.4522]
[1725258027655,37.6590793,129.34,129.3,49.5908]
[1725258027846,20.0,129.34,129.3,41.857]
[1725258028054,20.0,129.35,129.31,7.7333]
[1725258028352,3.86169729,129.37,129.3,41.857]
[1725258028353,7.7299,129.37,129.3,41.857]
[1725258028550,7.7299,129.37,129.31,45.0]
[1725258029134,7.7299,129.37,129.32,7.7326]
[1725258029747,20.0,129.36,129.32,7.7326]
[1725258032839,27.7306,129.36,129.31,7.7332]
[1725258033050,17.6589793,129.34,129.3,49.5908]
[1725258034353,27.7322,129.33,129.3,22.5232]
[1725258034551,27.7322,129.33,129.3,16.1184]
[1725258035056,7.7333,129.31,129.3,16.1184]
[1725258035258,27.7333,129.31,129.3,16.1184]
[1725258035838,20.0,129.31,129.3,16.1184]
[1725258036542,20.0,129.31,129.27,48.6874]
[1725258037962,20.12549,129.3,129.27,21.6133]
[1725258038536,7.85939,129.3,129.27,21.6133]
[1725258038854,20.0,129.29,129.27,21.6133]
[1725258039330,20.0,129.29,129.27,15.3301]
[1725258039853,7.85939,129.3,129.27,15.3301]
[1725258040055,20.0,129.29,129.27,15.3301]
[1725258040852,9.9273793,129.28,129.24,19.3432]
[1725258041338,20.0,129.27,129.24,27.0806]
[1725258041868,20.0,129.28,129.24,27.0806]
[1725258042159,7.7378,129.24,129.21,3.61766567]
[1725258042351,9.9273793,129.25,129.18,20.06506567]
[1725258042558,20.0,129.24,129.18,16.4474]
[1725258043153,20.0,129.24,129.2,27.0891]
[1725258043356,27.7364,129.26,129.21,7.7388]
[1725258043570,27.7364,129.26,129.22,6.5971]
[1725258047166,20.0,129.26,129.22,14.3357]
[1725258047364,20.0,129.26,129.24,15.5055]
[1725258050167,27.7363,129.26,129.24,15.5055]
[1725258051456,20.0,129.26,129.24,15.5055]
[1725258052860,19.3321,129.32,129.24,15.5055]
[1725258053077,19.3321,129.32,129.25,1.54711326]
[1725258053078,9.9273793,129.31,129.25,1.54711326]
[1725258053276,9.9273793,129.31,129.24,15.5055]
[1725258053461,7.7352,129.28,129.24,15.5055]
[1725258053779,7.7352,129.28,129.24,14.5055]
[1725258054468,20.0,129.27,129.24,14.5055]
[1725258054674,20.0,129.27,129.24,22.2429]
[1725258055777,20.0,129.28,129.24,22.2429]
[1725258055991,1.0,129.35,129.25,1.54594871]
[1725258056274,9.9273793,129.32,129.25,45.0]
[1725258056581,29.2600793,129.32,129.24,14.5055]
[1725258056881,33.12177659,129.32,129.24,14.5055]
[1725258057086,33.12177659,129.32,129.25,45.0]
[1725258057285,20.0,129.31,129.25,45.0]
[1725258057483,7.734,129.3,129.25,45.0]
[1725258057782,20.0,129.29,129.25,64.3416]
[1725258057984,20.0,129.31,129.25,64.3416]
[1725258059367,27.7334,129.31,129.26,7.7361]
[1725258061962,37.6607793,129.31,129.26,7.7361]
[1725258062690,37.6607793,129.31,129.25,64.3416]
[1725258062691,7.7341,129.3,129.25,72.0783]
[1725258062989,20.0,129.29,129.25,72.0783]
[1725258063666,37.6618793,129.29,129.24,14.5055]
[1725258064066,7.7352,129.28,129.24,14.5055]
[1725258064281,20.0,129.27,129.24,14.5055]
[1725258065992,27.7359,129.27,129.24,14.5055]
[1725258068600,20.0,129.27,129.24,14.5055]
[1725258068892,20.0,129.27,129.24,16.05277727]
[1725258069293,20.0,129.27,129.24,14.5055]
[1725258073314,7.7341,129.3,129.25,7.7364]
[1725258073512,6.3539,129.36,129.32,7.7327]
[1725258073669,9.9273793,129.37,129.29,15.8404]
[1725258073867,9.9273793,129.35,129.29,35.1766]
[1725258074991,0.25098,129.34,129.29,35.1766]
[1725258075197,17.6595793,129.33,129.26,22.2804]
[1725258075398,0.12549,129.32,129.28,7.735]
[1725258075694,9.9273793,129.33,129.28,7.735]
[1725258076389,20.0,129.32,129.28,7.735]
[1725258076591,20.0,129.32,129.29,7.7345]
[1725258076905,20.0,129.34,129.29,52.7345]
[1725258077402,20.0,129.34,129.3,7.7338]
[1725258077690,20.0,129.34,129.31,7.7331]
[1725258077892,13.78907659,129.38,129.31,16.5249]
[1725258078064,13.78907659,129.38,129.32,7.7325]
[1725258079077,20.0,129.37,129.33,7.7321]
[1725258081094,20.0,129.37,129.31,22.7611]
[1725258081302,9.9273793,129.4,129.32,46.54614908]
[1725258081469,9.9273793,129.4,129.32,45.0]
[1725258081778,7.7275,129.41,129.37,15.2429]
[1725258082496,20.0,129.4,129.37,15.2429]
[1725258082667,2.2117574,129.43,129.37,34.5661]
[1725258082871,13.78907659,129.44,129.38,45.0]
[1725258083698,21.51497659,129.44,129.39,7.7284]
[1725258083899,7.7262,129.43,129.37,34.5661]
[1725258084211,7.85169,129.43,129.37,34.5661]
[1725258084373,20.0,129.42,129.37,34.5661]
[1725258084580,27.7267,129.42,129.37,34.5661]
[1725258084775,0.12549,129.41,129.37,34.5661]
[1725258085287,0.12549,129.41,129.37,42.2958]
[1725258085876,7.85299,129.41,129.37,34.5661]
[1725258086183,27.7281,129.4,129.37,15.2429]
[1725258086506,20.12549,129.39,129.34,42.9796]
[1725258087195,7.7298,129.37,129.32,6.287]
[1725258087395,20.0,129.36,129.32,6.287]
[1725258088286,20.0,129.36,129.32,14.0197]
[1725258091007,20.0,129.36,129.33,7.7317]
[1725258091208,20.0,129.37,129.33,19.3291]
[1725258091510,7.7292,129.38,129.33,27.0611]
[1725258091808,20.12549,129.37,129.33,27.0611]
[1725258092210,20.0,129.37,129.33,27.0611]
[1725258092394,20.0,129.37,129.34,7.7314]
[1725258094509,20.0,129.38,129.34,7.7314]
[1725258095907,20.0,129.38,129.33,19.3291]
[1725258096209,20.0,129.38,129.36,7.7302]
[1725258096412,20.0,129.42,129.36,7.7302]
[1725258096603,0.25098,129.41,129.36,7.7302]
[1725258096802,7.97878,129.41,129.36,7.7302]
[1725258097114,20.0,129.4,129.36,7.7302]
[1725258100717,27.728,129.4,129.36,7.7302]
[1725258102491,27.728,129.4,129.36,19.3253]
[1725258102492,20.0,129.4,129.36,19.3253]
[1725258102888,20.0,129.4,129.36,27.0555]
[1725258103392,7.7297,129.37,129.34,45.0]
[1725258103712,7.7292,129.38,129.33,27.0616]
[1725258104289,17.6489861,129.39,129.34,7.7314]
[1725258104490,20.0,129.38,129.34,7.7314]
[1725258104705,20.0,129.38,129.35,7.7307]
[1725258104886,20.0,129.38,129.36,7.7303]
[1725258105091,20.0,129.39,129.36,7.7303]
[1725258105999,20.0,129.39,129.37,7.7297]
[1725258106198,20.0,129.4,129.37,7.7297]
[1725258108398,20.0,129.4,129.37,27.0531]
[1725258108716,20.0,129.41,129.37,27.0531]
[1725258110300,20.0,129.41,129.37,28.59881272]
[1725258110930,20.0,129.41,129.37,19.3235]
[1725258111100,7.726,129.44,129.39,7.728]
[1725258111417,20.0,129.43,129.39,7.728]
[1725258113099,20.0,129.43,129.38,7.7288]
[1725258113419,7.7263,129.43,129.38,7.7288]
[1725258113599,20.0,129.42,129.38,7.7288]
[1725258115315,20.0,129.42,129.39,7.7283]
[1725258117220,20.0,129.43,129.39,7.7283]
[1725258126234,24.17009729,129.48,129.4,17.40974337]
[1725258126235,3.86169729,129.48,129.4,17.40974337]
[1725258126422,9.9203861,129.47,129.42,7.7264]
[1725258127229,3.86169729,129.51,129.43,1.54515276]
[1725258127408,9.9203861,129.51,129.44,16.4734]
[1725258128208,2.2061474,129.52,129.44,24.1988]
[1725258128209,9.9203861,129.49,129.44,24.1988]
[1725258128534,20.0,129.48,129.44,24.1988]
[1725258130317,27.7232,129.48,129.44,24.1988]
[1725258131029,27.7232,129.48,129.44,16.4734]
[1725258131231,9.9203861,129.45,129.41,16.5015]
[1725258131440,20.0,129.44,129.41,16.5015]
[1725258132227,27.7256,129.44,129.41,16.5015]
[1725258134324,20.0,129.44,129.41,16.5015]
[1725258134523,0.12549,129.43,129.39,7.7284]
[1725258135949,0.12549,129.43,129.38,22.7867]
[1725258136119,9.9203861,129.41,129.35,16.5954]
[1725258136438,20.0,129.4,129.35,16.5954]
[1725258136640,20.12549,129.4,129.35,24.3258]
[1725258136820,20.0,129.4,129.36,7.7298]
[1725258137129,20.0,129.42,129.36,7.7298]
[1725258137329,0.25098,129.41,129.36,7.7298]
[1725258138239,20.0,129.42,129.36,7.7298]
[1725258138447,7.7275,129.41,129.36,7.7298]
[1725258138623,20.0,129.4,129.36,7.7298]
[1725258138824,20.0,129.4,129.37,7.7296]
[1725258139245,20.0,129.41,129.37,7.7296]
[1725258140624,27.7274,129.41,129.36,27.0553]
[1725258140820,7.7292,129.38,129.35,16.5954]
[1725258141227,10.0458761,129.39,129.35,16.5954]
[1725258141425,27.7292,129.38,129.35,16.5954]
[1725258143943,0.12549,129.37,129.33,7.7316]
[1725258150565,20.0,129.38,129.34,7.7314]
[1725258152846,20.0,129.38,129.36,7.7302]
[1725258153149,20.0,129.4,129.36,7.7302]
[1725258156760,27.728,129.4,129.35,19.3265]
[1725258156951,0.12549,129.39,129.35,19.3265]
[1725258157256,0.12549,129.39,129.35,27.0572]
[1725258157444,0.25098,129.39,129.35,27.0572]
[1725258159932,0.12549,129.39,129.35,27.0572]
[1725258161567,0.12549,129.39,129.35,19.3265]
[1725258162057,0.12549,129.39,129.36,7.7302]
[1725258164559,0.12549,129.39,129.35,27.0573]
[1725258170262,20.0,129.4,129.36,1.5460206]
[1725258170477,20.0,129.4,129.39,7.7285]
[1725258170657,9.9203861,129.45,129.39,7.7285]
[1725258170857,7.726,129.44,129.39,7.7285]
[1725258171062,273.40569729,129.46,129.41,7.7268]
[1725258171368,7.7251,129.45,129.4,27.0472]
[1725258172852,20.25098,129.44,129.4,27.0472]
[1725258173466,20.0,129.44,129.4,27.0472]
[1725258173671,7.7251,129.45,129.4,27.0472]
[1725258173859,7.7244,129.46,129.41,7.7273]